[Event "Gibraltar Challengers B 2019"]
[Site "Caleta"]
[Date "2019.01.28"]
[Round "3"]
[White "Suez-Panama, Gilles"]
[Black "Gillis Onieva, Celia"]
[Result "0-1"]
[ECO "E12"]
[WhiteElo "2078"]
[BlackElo "1930"]
[Annotator "NA RC"]
[PlyCount "76"]
[EventDate "2019.01.18"]
[EventType "swiss"]
[EventCountry "GGB"]
[SourceTitle "playchess.com"]
[Source "ChessBase"]
[SourceQuality "1"]
[TimeControl "6600+10"]

{[%evp 15,76,-6,32767,-19,-4,32767,0,-13,0,0,32767,32767,32767,32767,-49,32767,32767,-63,32767,32767,32767,32767,-112,32767,-162,32767,-159,-168,32767,-177,32767,32767,32767,-173,-131,-143,-129,32767,-134,-148,-147,-135,-124,-160,32767,32767,-217,-270,-267,-313,-316,-352,-365,-366,-389,-368,-391,-566,-453,-29993,-29994,-29996,-29997]} 1. d4 {[%emt 0:06:08]} Nf6 {[%emt 0:00:04]} 2. Nf3 {[%emt 0:00:04]} e6 {[%emt 0:00:20]} 3. c4 {[%emt 0:00:53]} b6 {[%emt 0:00:14]} 4. a3 {[%emt 0:00:05]} c5 {[%emt 0:00:24]} 5. d5 {[%emt 0:00:34]} Ba6 {[%emt 0:00:59]} 6. b3 {[%emt 0:12:37]} exd5 {[%emt 0:03:21]} 7. cxd5 {[%emt 0:00:46]} g6 {[%emt 0:00:17] E12: Queen's Indian: Unusual White 4th moves, 4 a3, 4 Nc3 Bb7 5 a3 and 4 Nc3 Bb7} 8. Bb2 {[%emt 0:03:27] LiveBook: 12 Games} Bg7 {[%emt 0:00:24]} 9. Qc2 {[%emt 0:13:29]} O-O {[%emt 0:07:06]} 10. Nc3 {[%emt 0:00:23]} Re8 {[%emt 0:04:33]} 11. e3 $146 {[%emt 0:03:15]} ({Predecessor:} 11. g3 d6 12. e3 Bb7 13. Rd1 Na6 14. Bg2 Nc7 15. O-O Nfxd5 {0-1 (26) Haessel,D (2234)-Shankland,S (2646) Edmonton 2016}) 11... Bxf1 {[%emt 0:07:05]} 12. Kxf1 {[%emt 0:00:12]} d6 {[%emt 0:02:10]} 13. h4 {[%emt 0:00:40]} Nbd7 {[%emt 0:15:14]} 14. Rd1 {[%emt 0:04:09]} Ne5 {[%emt 0:07:45]} 15. Nxe5 {[%emt 0:01:52]} Rxe5 {[%emt 0:00:06]} 16. Ne2 {[%emt 0:08:46]} Rxd5 {[%emt 0:06:08]} 17. Rxd5 {[%emt 0:01:24]} Nxd5 {[%emt 0:01:42]} 18. Bxg7 {[%emt 0:00:09]} Kxg7 {[%emt 0:00:22]} 19. e4 {[%emt 0:05:34]} Nf6 {[%emt 0:01:59]} 20. Nf4 {[%emt 0:02:31]} Qe7 {[%emt 0:04:38]} 21. f3 {[%emt 0:00:09]} Qe5 {[%emt 0:05:02]} 22. g3 {[%emt 0:01:25]} h5 {[%emt 0:05:26]} 23. Kg2 {[%emt 0:00:36]} d5 {[%emt 0:12:59]} 24. exd5 {[%emt 0:06:29]} Nxd5 {[%emt 0:00:22]} 25. Nxd5 {[%emt 0:00:09]} Qxd5 {[%emt 0:00:06]} 26. Rd1 {[%emt 0:00:18]} Qe6 {[%emt 0:07:21]} 27. Qc3+ {[%emt 0:01:59]} Kg8 {[%emt 0:00:07]} 28. Re1 {[%emt 0:00:23]} Qd6 {[%emt 0:00:09]} 29. Qc4 {[%emt 0:02:02]} Rd8 {[%emt 0:00:52]} 30. Qb5 {[%emt 0:00:28]} Kg7 {[%emt 0:05:45]} 31. a4 {[%emt 0:04:07]} Qd2+ {[%emt 0:02:31]} 32. Re2 {[%emt 0:00:17]} Qd1 {[%emt 0:00:21]} 33. Qc4 {[%emt 0:00:50]} Rd3 {[%emt 0:01:07]} 34. Qe4 {[%emt 0:00:38]} Qxb3 {[%emt 0:02:33]} 35. Qe5+ {[%emt 0:00:26]} Kh7 {[%emt 0:01:55]} 36. Qb8 {[%emt 0:00:17]} (36. Qf4 {keeps fighting.}) 36... Qd5 {[%emt 0:01:28]} 37. Re4 $2 {[%emt 0:01:05]} (37. Qf4 $19) 37... Rd2+ {[%emt 0:00:05]} 38. Kh3 {[%emt 0:00:17]} Qf5+ {[%emt 0:00:09] Double Attack} 0-1

[Event "Gibraltar Challengers B 2019"]
[Site "Caleta"]
[Date "2019.01.28"]
[Round "3"]
[White "Alami, Halim"]
[Black "Elishev, Ivan"]
[Result "0-1"]
[ECO "B31"]
[WhiteElo "2059"]
[BlackElo "2224"]
[Annotator "ChessBase"]
[PlyCount "84"]
[EventDate "2019.01.18"]
[EventType "swiss"]
[EventCountry "GGB"]
[SourceTitle "playchess.com"]
[Source "ChessBase"]
[SourceQuality "1"]
[TimeControl "6600+10"]

1. e4 {[%emt 0:02:48]} c5 {[%emt 0:00:00]} 2. Nf3 {[%emt 0:00:07]} Nc6 {[%emt 0:00:14]} 3. Bb5 {[%emt 0:00:14]} g6 {[%emt 0:00:05]} 4. O-O {[%emt 0:00:31]} Bg7 {[%emt 0:00:04]} 5. Re1 {[%emt 0:00:27]} e5 {[%emt 0:00:26]} 6. Bxc6 {[%emt 0:02:38]} bxc6 {[%emt 0:00:32]} 7. c3 {[%emt 0:01:53]} Ne7 {[%emt 0:01:35]} 8. d4 {[%emt 0:00:39]} cxd4 {[%emt 0:01:05]} 9. cxd4 {[%emt 0:00:04]} exd4 {[%emt 0:00:37]} 10. Nxd4 {[%emt 0:00:12]} O-O {[%emt 0:00:23]} 11. Nc3 {[%emt 0:00:49]} Qc7 {[%emt 0:08:25]} 12. Be3 {[%emt 0:00:53]} f5 {[%emt 0:14:55]} 13. Bg5 {[%emt 0:03:44]} Qd6 {[%emt 0:14:12]} 14. Nxc6 {[%emt 0:06:02]} Qxc6 {[%emt 0:00:47]} 15. Bxe7 {[%emt 0:00:20]} Rf7 {[%emt 0:04:11]} 16. Qb3 {[%emt 0:03:58]} Bxc3 {[%emt 0:11:52]} 17. bxc3 {[%emt 0:00:52]} fxe4 {[%emt 0:00:34]} 18. Rad1 {[%emt 0:01:10]} d5 {[%emt 0:02:58]} 19. Bg5 {[%emt 0:12:51]} Be6 {[%emt 0:00:28]} 20. Qa3 {[%emt 0:00:58]} Rc8 {[%emt 0:03:23]} 21. Rc1 {[%emt 0:00:21]} Qc5 {[%emt 0:03:03]} 22. Qb2 {[%emt 0:01:48]} d4 {[%emt 0:01:15]} 23. Bd2 {[%emt 0:05:03]} Qf5 {[%emt 0:05:43]} 24. cxd4 {[%emt 0:03:00]} Qxf2+ {[%emt 0:00:13]} 25. Kh1 {[%emt 0:00:24]} e3 {[%emt 0:08:29]} 26. Bc3 {[%emt 0:09:48]} Bd5 {[%emt 0:05:21]} 27. Rg1 {[%emt 0:06:30]} Qxb2 {[%emt 0:03:36]} 28. Bxb2 {[%emt 0:00:02]} Rxc1 {[%emt 0:00:44]} 29. Bxc1 {[%emt 0:00:20]} e2 {[%emt 0:00:09]} 30. Bd2 {[%emt 0:12:11]} Rf1 {[%emt 0:00:10]} 31. a3 {[%emt 0:01:34]} g5 {[%emt 0:00:30]} 32. h3 {[%emt 0:00:50]} h5 {[%emt 0:00:16]} 33. Kh2 {[%emt 0:05:38]} Kf7 {[%emt 0:00:45]} 34. Be1 {[%emt 0:03:43]} g4 {[%emt 0:00:44]} 35. a4 {[%emt 0:01:48]} Kg6 {[%emt 0:00:07]} 36. a5 {[%emt 0:05:52]} a6 {[%emt 0:00:01]} 37. hxg4 {[%emt 0:04:26]} hxg4 {[%emt 0:00:02]} 38. Bh4 {[%emt 0:00:54]} Kf5 {[%emt 0:00:16]} 39. Bg3 {[%emt 0:00:48]} Ke4 {[%emt 0:00:08]} 40. Be1 {[%emt 0:00:30]} Kxd4 {[%emt 0:00:26]} 41. Bh4 {[%emt 0:01:08]} Kd3 {[%emt 0:00:15]} 42. Be1 {[%emt 0:01:21]} Kc2 {[%emt 0:00:09]} 0-1

[Event "Gibraltar Challengers B 2019"]
[Site "Caleta"]
[Date "2019.01.28"]
[Round "3"]
[White "Cao Armillas, Jesus"]
[Black "Erdogan, Hassan"]
[Result "1-0"]
[ECO "A53"]
[WhiteElo "2048"]
[BlackElo "1833"]
[Annotator "NA RC"]
[PlyCount "69"]
[EventDate "2019.01.18"]
[EventType "swiss"]
[EventCountry "GGB"]
[SourceTitle "playchess.com"]
[Source "ChessBase"]
[SourceQuality "1"]
[TimeControl "6600+10"]

{[%evp 8,69,44,32767,61,19,32767,60,59,32767,32767,32767,50,32767,32767,32767,30,32767,32767,32767,32767,15,28,32767,32767,32767,32767,32767,75,32767,159,32767,32767,216,32767,196,32767,220,258,32767,32767,293,32767,318,341,200,422,458,464,506,527,505,32767,591,568,632,796,883,880,897,1020,654,1147,1216]} 1. d4 {[%emt 0:00:00]} Nf6 {[%emt 0:00:04]} 2. c4 {[%emt 0:00:00]} d6 {[%emt 0:00:14]} 3. Nf3 {[%emt 0:00:07]} Nbd7 {[%emt 0:00:34]} 4. g3 {[%emt 0:00:38]} e5 {[%emt 0:01:45]} 5. Bg2 {[%emt 0:00:27] A53: Old Indian Defence without Nf3} Be7 {[%emt 0:07:14]} (5... c6 6. Nc3 e4 7. Nh4 d5 8. O-O Bb4 9. cxd5 cxd5 10. f3 Bxc3 11. bxc3 O-O 12. Ba3 Re8 13. Nf5 Nb6 14. Nd6 Nc4 15. Nxc4 dxc4 16. fxe4 Nxe4 {1-0 (34) Aronian,L (2767)-Grischuk,A (2766) Saint Louis 2018}) 6. O-O {[%emt 0:00:14] LiveBook: 174 Games} a5 {[%emt 0:01:08]} 7. Nc3 {[%emt 0:00:24]} O-O {[%emt 0:04:30]} 8. Qc2 {[%emt 0:02:17]} c6 {[%emt 0:01:33]} 9. Rd1 {[%emt 0:00:44]} Qc7 {[%emt 0:00:47]} 10. b3 {[%emt 0:08:24]} Re8 {[%emt 0:10:51]} 11. e4 {[%emt 0:04:47]} b5 $146 {[%emt 0:06:23]} ({Predecessor:} 11... Nf8 12. Bb2 Bg4 13. dxe5 dxe5 14. Na4 Ng6 15. c5 {0-1 (57) Traut,S (1627)-Koellner,A (2001) Wiesbaden 2018}) 12. Bb2 {[%emt 0:16:01]} bxc4 {[%emt 0:03:42]} 13. bxc4 {[%emt 0:00:06]} exd4 {[%emt 0:09:29]} 14. Nxd4 {[%emt 0:00:10]} Ne5 {[%emt 0:03:23]} 15. Na4 {[%emt 0:04:56]} Ba6 {[%emt 0:01:57]} 16. Bf1 {[%emt 0:07:56]} c5 {[%emt 0:07:50]} 17. Nf5 {[%emt 0:03:51]} Bb7 {[%emt 0:02:36]} 18. Bg2 {[%emt 0:01:21]} Bf8 {[%emt 0:07:25]} 19. Nc3 {[%emt 0:07:06]} Ba6 {[%emt 0:09:33]} 20. Nb5 {[%emt 0:02:16]} Bxb5 {[%emt 0:02:23]} 21. cxb5 {[%emt 0:00:06]} Rab8 {[%emt 0:05:33]} 22. a4 {[%emt 0:02:41]} g6 {[%emt 0:01:01]} 23. Ne3 {[%emt 0:03:23]} Bg7 {[%emt 0:00:10]} 24. f4 {[%emt 0:01:46]} Neg4 {[%emt 0:00:45]} 25. Nc4 {[%emt 0:00:51]} Rbd8 {[%emt 0:05:06]} 26. h3 {[%emt 0:01:15]} Nh6 $2 {[%emt 0:00:09]} (26... d5 27. hxg4 (27. exd5 Ne3 $18) 27... dxc4 28. Bxf6 (28. Qxc4 Nxg4 29. Bxg7 Kxg7 $16) 28... Bxf6) 27. Bc3 {[%emt 0:04:39]} Nh5 {[%emt 0:01:10]} 28. Bxa5 {[%emt 0:01:37]} Qb8 {[%emt 0:01:05]} 29. Ra3 {[%emt 0:01:36]} Rd7 {[%emt 0:00:21] [#]} 30. e5 $1 {[%emt 0:00:48]} Nf5 {[%emt 0:01:39]} 31. Bc6 {[%emt 0:01:45] Skewer} Rde7 {[%emt 0:01:12]} 32. Bxe8 {[%emt 0:00:48]} Rxe8 {[%emt 0:00:10]} 33. Nxd6 {[%emt 0:00:53]} Nxd6 {[%emt 0:00:11]} 34. Rxd6 {[%emt 0:00:33]} Nxg3 {[%emt 0:00:08]} 35. Rxg3 $18 {[%emt 0:00:32]} 1-0

[Event "Gibraltar Challengers B 2019"]
[Site "Caleta"]
[Date "2019.01.28"]
[Round "3"]
[White "Herzwurm, Robert"]
[Black "Obiamiwe, Paul"]
[Result "0-1"]
[ECO "C51"]
[WhiteElo "2021"]
[BlackElo "1903"]
[Annotator "NA RC"]
[PlyCount "50"]
[EventDate "2019.01.18"]
[EventType "swiss"]
[EventCountry "GGB"]
[SourceTitle "playchess.com"]
[Source "ChessBase"]
[SourceQuality "1"]
[TimeControl "6600+10"]

1. e4 {[%emt 0:00:00]} e5 {[%emt 0:17:27]} 2. Nf3 {[%emt 0:00:05]} Nc6 {[%emt 0:00:10]} 3. Bc4 {[%emt 0:00:06]} Bc5 {[%emt 0:00:27]} 4. b4 {[%emt 0:00:08]} Bxb4 {[%emt 0:00:09]} 5. c3 {[%emt 0:00:15]} Be7 {[%emt 0:00:11]} 6. d4 {[%emt 0:01:16]} Na5 {[%emt 0:01:02]} 7. Bd3 {[%emt 0:01:22]} d6 {[%emt 0:02:56] C51: Evans Gambit: Declined and Accepted without 5...Ba5} 8. dxe5 {[%emt 0:03:56]} dxe5 {[%emt 0:00:57]} 9. Nxe5 {[%emt 0:01:07]} Nf6 {[%emt 0:00:23]} 10. O-O {[%emt 0:02:15]} O-O {[%emt 0:00:02]} 11. Qc2 {[%emt 0:03:05]} (11. Nd2 Nd7 12. Nxd7 Qxd7 13. Qc2 Rd8 14. Be2 Qc6 15. f4 {0-1 (30) Antipov,M (2598)-Rodshtein,M (2678) Linares 2018}) 11... c6 {[%emt 0:01:35] LiveBook: 5 Games} 12. Nd2 {[%emt 0:29:17]} Qc7 {[%emt 0:01:17]} 13. Nef3 {[%emt 0:03:32]} h6 {[%emt 0:01:29]} 14. c4 $146 {[%emt 0:12:03]} ({Predecessor:} 14. h3 Nd7 15. Re1 {0-1 (50) Ivic,V (2394)-Villca,J (2196) Montevideo 2017}) 14... b6 {[%emt 0:06:36]} 15. Bb2 {[%emt 0:07:09]} Rd8 {[%emt 0:12:25]} 16. e5 {[%emt 0:06:22]} Nh5 {[%emt 0:09:50]} 17. Nd4 {[%emt 0:07:20]} Nf4 $1 {[%emt 0:07:04]} 18. Bh7+ {[%emt 0:03:29]} Kh8 {[%emt 0:01:00]} 19. Qe4 {[%emt 0:02:02]} (19. N2f3 $142) 19... Ne6 {[%emt 0:02:45]} 20. Nxe6 {[%emt 0:05:08]} Bxe6 {[%emt 0:00:24]} 21. Rad1 {[%emt 0:01:12]} (21. Bc3 $17) 21... Qd7 {[%emt 0:08:24]} 22. f4 $2 {[%emt 0:00:53]} (22. Bc3 $17) 22... Bc5+ {[%emt 0:02:00]} 23. Kh1 {[%emt 0:01:51] [#]} Nxc4 $1 {[%emt 0:01:04] Pin} 24. Bc3 $19 {[%emt 0:02:44]} Ne3 {[%emt 0:01:27]} 25. f5 {[%emt 0:01:00]} Bd5 {[%emt 0:00:44]} 0-1

[Event "Gibraltar Challengers B 2019"]
[Site "Caleta"]
[Date "2019.01.28"]
[Round "3"]
[White "Hassomal Daswani, Birjkumar"]
[Black "Nandi, Robin J"]
[Result "1-0"]
[ECO "C54"]
[WhiteElo "2008"]
[BlackElo "1903"]
[Annotator "NA RC"]
[PlyCount "85"]
[EventDate "2019.01.18"]
[EventType "swiss"]
[EventCountry "GGB"]
[SourceTitle "playchess.com"]
[Source "ChessBase"]
[SourceQuality "1"]
[TimeControl "6600+10"]

1. e4 {[%emt 0:11:21]} e5 {[%emt 0:00:01]} 2. Nf3 {[%emt 0:00:05]} Nc6 {[%emt 0:00:12]} 3. Bc4 {[%emt 0:00:30]} Bc5 {[%emt 0:00:08]} 4. O-O {[%emt 0:00:13]} Nf6 {[%emt 0:00:07]} 5. d3 {[%emt 0:00:32]} d6 {[%emt 0:00:45]} 6. c3 {[%emt 0:00:22]} O-O {[%emt 0:00:41]} 7. a4 {[%emt 0:00:17]} a6 {[%emt 0:01:42]} 8. Bg5 {[%emt 0:00:26]} h6 {[%emt 0:00:29]} 9. Bh4 {[%emt 0:00:15]} Ba7 {[%emt 0:01:04]} 10. Bb3 {[%emt 0:00:14] C54: Giuoco Piano: 4 c3 Nf6, main lines with 5 d4 and 5 d3} (10. Nbd2 g5 11. Bg3 g4 12. Nh4 Nh5 13. Re1 Qg5 14. Nf1 Kg7 15. Ne3 Nxg3 16. hxg3 Bxe3 17. Rxe3 Ne7 {1-0 (55) Anand,V (2773)-Nakamura,H (2746) Kolkata 2018}) 10... Re8 $146 {[%emt 0:00:29]} ({Predecessor:} 10... Be6 11. Nbd2 Qe7 12. Re1 Bxb3 13. Qxb3 Rab8 14. Nc4 Qe6 15. a5 Nd7 {1-0 (61) Yudasin,L (2615)-Ivanov,A (2520) Worchester 1990}) 11. Nbd2 {[%emt 0:00:23]} Be6 {[%emt 0:01:03]} 12. Bc2 {[%emt 0:00:06]} Qe7 {[%emt 0:15:35]} 13. Re1 {[%emt 0:02:08]} Rad8 {[%emt 0:01:31]} 14. Nf1 {[%emt 0:00:24]} d5 {[%emt 0:03:54]} 15. exd5 {[%emt 0:00:12]} Bxd5 {[%emt 0:02:04]} 16. Nxe5 {[%emt 0:01:08]} Nxe5 {[%emt 0:05:51]} 17. d4 {[%emt 0:00:53]} Nf3+ {[%emt 0:32:22]} 18. gxf3 {[%emt 0:00:30]} Qxe1 {[%emt 0:06:54]} 19. Qxe1 {[%emt 0:00:29]} Rxe1 {[%emt 0:00:04]} 20. Rxe1 {[%emt 0:00:05]} Bxf3 {[%emt 0:00:21]} 21. Re7 {[%emt 0:01:15]} Nd5 {[%emt 0:02:11]} 22. Rxf7 {[%emt 0:00:41]} Kxf7 {[%emt 0:00:48]} 23. Bxd8 {[%emt 0:00:06]} c5 {[%emt 0:05:10]} 24. Nd2 {[%emt 0:01:21]} Bg4 {[%emt 0:03:08]} 25. dxc5 {[%emt 0:02:22]} Bxc5 {[%emt 0:01:10]} 26. Be4 {[%emt 0:02:50]} Ne3 $2 {[%emt 0:09:51]} (26... Ke6 $16 {is tougher.}) 27. b4 {[%emt 0:01:36]} Ba7 {[%emt 0:00:19]} 28. Bxb7 {[%emt 0:00:21]} Nd1 {[%emt 0:00:27]} 29. Ne4 {[%emt 0:03:45]} Bf5 {[%emt 0:03:25]} 30. Nd6+ {[%emt 0:03:25]} Ke6 {[%emt 0:00:04]} 31. Nxf5 {[%emt 0:00:24]} Kxf5 {[%emt 0:00:02]} 32. c4 {[%emt 0:00:39]} Nxf2 {[%emt 0:01:46]} 33. c5 {[%emt 0:00:10]} Nd3 {[%emt 0:00:10]} 34. Bb6 {[%emt 0:03:02]} Bxb6 {[%emt 0:03:52]} 35. cxb6 {[%emt 0:00:48]} Ke5 {[%emt 0:01:15]} (35... Nxb4 $142 36. Bh1 a5) 36. Bxa6 {[%emt 0:00:26]} Nxb4 {[%emt 0:00:02]} 37. Bb5 {[%emt 0:00:15]} Kd6 {[%emt 0:00:56]} 38. Kf2 {[%emt 0:00:54]} Nd5 {[%emt 0:01:43]} 39. a5 {[%emt 0:00:31]} Nc3 {[%emt 0:00:06]} 40. a6 {[%emt 0:02:44]} Nd5 {[%emt 0:02:46]} 41. b7 {[%emt 0:00:11]} Kc7 {[%emt 0:00:09] [#]} 42. Bc6 $1 {[%emt 0:01:21]} Nb4 {[%emt 0:01:03]} 43. a7 $18 {[%emt 0:00:52]} 1-0

[Event "Gibraltar Challengers B 2019"]
[Site "Caleta"]
[Date "2019.01.28"]
[Round "3"]
[White "Cano Sevilla, Ivan"]
[Black "Ungureanu, Sandu"]
[Result "1/2-1/2"]
[ECO "D02"]
[WhiteElo "1950"]
[BlackElo "2057"]
[Annotator "NA RC"]
[PlyCount "120"]
[EventDate "2019.01.18"]
[EventType "swiss"]
[EventCountry "GGB"]
[SourceTitle "playchess.com"]
[Source "ChessBase"]
[SourceQuality "1"]
[TimeControl "6600+10"]

1. d4 {[%emt 0:00:01]} c6 {[%emt 0:00:04]} 2. Nf3 {[%emt 0:00:16]} d5 {[%emt 0:00:10]} 3. Bf4 {[%emt 0:00:08]} Nf6 {[%emt 0:00:27]} 4. e3 {[%emt 0:00:05]} Bg4 {[%emt 0:00:47]} 5. Be2 {[%emt 0:00:06]} Bxf3 {[%emt 0:00:14] D02: 1 d4 d5 2 Nf3 sidelines, including 2...Nf6 3 g3 and 2...Nf6 3 Bf4} (5... Nbd7 6. Nbd2 e6 7. h3 Bh5 8. O-O Be7 9. c4 O-O 10. Ne5 Bxe2 11. Qxe2 a5 12. Nxd7 Qxd7 13. c5 {½-½ (42) Marjanovic,D (2432)-Dao,T (2486) Baku 2016}) 6. Bxf3 {[%emt 0:00:05]} e6 {[%emt 0:00:24]} 7. c3 {[%emt 0:00:08]} Bd6 $146 {[%emt 0:02:05]} ({Predecessor:} 7... Be7 8. Nd2 O-O 9. O-O {½-½ (9) Kukuljan,V (2043)-Zoricic,M (2066) Croatia 2016}) 8. Bg5 {[%emt 0:00:55]} Nbd7 {[%emt 0:00:51]} 9. Nd2 {[%emt 0:00:31]} h6 {[%emt 0:00:11]} 10. Bh4 {[%emt 0:00:07]} Qc7 {[%emt 0:05:02]} 11. Qe2 {[%emt 0:02:18]} g5 {[%emt 0:01:52]} 12. Bg3 {[%emt 0:00:05]} h5 {[%emt 0:00:22]} 13. Bxd6 {[%emt 0:00:12]} Qxd6 {[%emt 0:00:08]} 14. g3 {[%emt 0:00:32]} g4 {[%emt 0:00:14]} 15. Bg2 {[%emt 0:00:24]} h4 {[%emt 0:00:22]} 16. Rg1 {[%emt 0:01:40]} O-O-O {[%emt 0:07:01]} 17. e4 {[%emt 0:03:05]} e5 {[%emt 0:01:30]} 18. dxe5 {[%emt 0:01:47]} Qxe5 {[%emt 0:00:52]} 19. exd5 {[%emt 0:00:47]} Qxe2+ {[%emt 0:01:07]} 20. Kxe2 {[%emt 0:00:02]} Rhe8+ {[%emt 0:01:14]} 21. Kd1 {[%emt 0:01:39]} Ne5 {[%emt 0:01:10]} (21... Nc5 $17 22. Kc2 h3) 22. Kc2 {[%emt 0:00:46]} h3 {[%emt 0:02:11]} 23. Bh1 {[%emt 0:00:37]} Nxd5 {[%emt 0:02:30]} 24. Rge1 {[%emt 0:01:35]} Nf6 {[%emt 0:08:59]} 25. Rad1 {[%emt 0:05:50]} Kc7 {[%emt 0:02:06]} 26. f4 {[%emt 0:11:33]} Ng6 {[%emt 0:05:50]} 27. c4 {[%emt 0:13:12]} Rxe1 {[%emt 0:09:14]} 28. Rxe1 {[%emt 0:00:07]} Re8 {[%emt 0:00:03]} 29. Rxe8 {[%emt 0:03:14]} Nxe8 {[%emt 0:00:05]} 30. Be4 {[%emt 0:00:03]} Ne7 {[%emt 0:00:49]} 31. Kc3 {[%emt 0:01:07]} f5 {[%emt 0:02:22]} 32. Bc2 {[%emt 0:01:29]} c5 {[%emt 0:01:58]} 33. a3 {[%emt 0:01:05]} a5 {[%emt 0:01:48]} 34. b4 {[%emt 0:01:27]} axb4+ {[%emt 0:00:08]} 35. axb4 {[%emt 0:00:04]} b6 {[%emt 0:00:57]} 36. bxc5 {[%emt 0:01:29]} bxc5 {[%emt 0:00:05]} 37. Nf1 {[%emt 0:00:45]} Nd6 {[%emt 0:01:26]} 38. Ne3 {[%emt 0:00:55]} Kd7 {[%emt 0:00:35]} 39. Nd5 {[%emt 0:05:17]} Nxd5+ 40. cxd5 {[%emt 0:00:01]} Kc7 {[%emt 0:04:41]} 41. Bd3 {[%emt 0:02:27] [#]} Kb6 $2 {[%emt 0:01:37]} ({Black should play} 41... Kb7 $1 $19 42. Bc2 Nb5+ 43. Kc4 Na3+ 44. Kb3 Nxc2 45. Kxc2 Kc7) 42. Kb3 {[%emt 0:01:00]} Kb7 {[%emt 0:02:22]} 43. Kc3 $2 {[%emt 0:01:49]} (43. Ka4 $11 {and White is okay.}) 43... Kb6 {[%emt 0:00:30]} 44. Kb3 {[%emt 0:00:08]} Kc7 {[%emt 0:00:05]} 45. Kc3 {[%emt 0:00:04]} Kb6 {[%emt 0:00:41]} 46. Kb3 {[%emt 0:00:08]} Ka5 {[%emt 0:00:05]} 47. Kc3 {[%emt 0:00:04]} Ka4 {[%emt 0:00:13]} 48. Bc2+ {[%emt 0:00:17]} Kb5 {[%emt 0:00:13]} 49. Bb1 $2 {[%emt 0:02:10]} (49. Bd3+ $11 c4 50. Bxc4+ Nxc4 51. Kd4) 49... c4 {[%emt 0:00:20]} 50. Kd4 {[%emt 0:00:06]} Kb4 {[%emt 0:00:14]} 51. Ke5 {[%emt 0:01:00]} Kc5 {[%emt 0:00:09]} 52. Ke6 {[%emt 0:01:12]} c3 {[%emt 0:01:22]} 53. Bc2 {[%emt 0:02:29]} Ne4 $2 {[%emt 0:03:13]} ({Black should try} 53... Nb5 $19 54. Ba4 Nd4+ 55. Ke5 Nf3+ 56. Ke6 Kb4) 54. Kxf5 {[%emt 0:00:52]} Nxg3+ $1 {[%emt 0:00:19]} 55. Kxg4 {[%emt 0:00:07]} Ne2 {[%emt 0:01:10]} 56. f5 {[%emt 0:07:48]} Kxd5 {[%emt 0:00:42]} 57. f6 {[%emt 0:00:19]} Ke6 {[%emt 0:00:24]} 58. Kg5 {[%emt 0:00:42]} Kf7 {[%emt 0:00:11]} 59. Bb3+ {[%emt 0:04:11]} Kf8 {[%emt 0:00:24]} 60. Kh4 {[%emt 0:01:15]} Nf4 $11 {[%emt 0:00:03]} 1/2-1/2

[Event "Gibraltar Challengers B 2019"]
[Site "Caleta"]
[Date "2019.01.28"]
[Round "3"]
[White "Pereira Lopez, Aketza"]
[Black "Vinal Gutierrez, Pedro"]
[Result "1-0"]
[ECO "C00"]
[WhiteElo "1861"]
[BlackElo "1997"]
[Annotator "NA"]
[PlyCount "79"]
[EventDate "2019.01.18"]
[EventType "swiss"]
[EventCountry "GGB"]
[SourceTitle "playchess.com"]
[Source "ChessBase"]
[SourceQuality "1"]
[TimeControl "6600+10"]

1. e4 {[%emt 0:00:00]} e6 {[%emt 0:00:00]} 2. Nf3 {[%emt 0:00:08]} d5 {[%emt 0:00:00]} 3. e5 {[%emt 0:00:17]} c5 {[%emt 0:00:30]} 4. b4 {[%emt 0:00:14]} d4 {[%emt 0:01:07]} 5. bxc5 {[%emt 0:00:07]} Bxc5 {[%emt 0:00:26]} 6. Ba3 {[%emt 0:00:07] C00: French: Unusual White 2nd moves} (6. Bd3 Nc6 7. Ba3 Qa5 8. Bxc5 Qxc5 9. O-O Nxe5 10. Nxe5 Qxe5 11. Na3 Nf6 12. Nc4 Qc7 13. Re1 Bd7 {0-1 (39) Maier,C (2388)-Rambaldi,F (2555) Porto Mannu 2017}) 6... Qa5 {[%emt 0:03:02]} 7. Bxc5 {[%emt 0:00:14]} Qxc5 {[%emt 0:00:07]} 8. c3 {[%emt 0:00:23]} Nc6 {[%emt 0:00:52]} 9. cxd4 {[%emt 0:00:27]} Nxd4 {[%emt 0:00:57]} 10. Qa4+ {[%emt 0:00:09]} Bd7 {[%emt 0:01:24]} 11. Qxd4 {[%emt 0:00:07]} Qc1+ {[%emt 0:00:11]} 12. Ke2 {[%emt 0:00:01]} Bb5+ {[%emt 0:00:39]} 13. d3 {[%emt 0:00:02]} Rd8 {[%emt 0:04:07]} 14. Nbd2 $146 {[%emt 0:00:39]} Qc7 $2 {[%emt 0:09:55]} (14... Qa3 $1 $11 {and Black has nothing to worry.} 15. Qf4 (15. Nc4 $2 Bxc4 {[%mdl 64] Overworked Piece} 16. Qxc4 Qb2+ {[%mdl 64] Double Attack} 17. Ke3 Qxa1 $19) 15... Qb2) 15. Qb2 {[%emt 0:05:18]} Bxd3+ {[%emt 0:06:15]} 16. Ke1 {[%emt 0:00:08]} Ne7 {[%emt 0:02:16]} 17. Rc1 {[%emt 0:09:59]} Nc6 {[%emt 0:00:41]} 18. Qa3 {[%emt 0:03:04]} Bxf1 {[%emt 0:04:15]} 19. Kxf1 {[%emt 0:02:07]} Rd5 {[%emt 0:06:01]} 20. Nc4 {[%emt 0:03:46]} f6 {[%emt 0:03:13]} 21. g3 {[%emt 0:04:53]} Kd8 {[%emt 0:06:16]} 22. Kg2 {[%emt 0:02:34]} Kc8 {[%emt 0:01:18]} 23. Nd6+ {[%emt 0:00:31]} Kb8 {[%emt 0:00:16]} 24. Rb1 {[%emt 0:08:23]} Na5 {[%emt 0:01:01]} 25. Rhc1 {[%emt 0:01:18]} Qd7 {[%emt 0:02:39]} 26. Rc5 {[%emt 0:05:51]} fxe5 {[%emt 0:02:05]} 27. Rxd5 {[%emt 0:02:44]} exd5 {[%emt 0:00:18]} 28. Nxe5 {[%emt 0:01:23]} Qc7 {[%emt 0:01:40]} 29. Rb5 {[%emt 0:04:52]} b6 {[%emt 0:04:14]} 30. Qxa5 {[%emt 0:03:18]} Qxd6 {[%emt 0:00:20]} 31. Nf7 {[%emt 0:00:08]} Qc6 {[%emt 0:04:40]} 32. Nxh8 {[%emt 0:29:19]} d4+ {[%emt 0:00:11]} 33. Kh3 {[%emt 0:00:43]} Qe6+ {[%emt 0:05:23]} 34. Kh4 {[%emt 0:04:48]} Qe7+ {[%emt 0:07:29]} 35. Kg4 {[%emt 0:00:40]} Qe4+ {[%emt 0:02:06]} 36. Kg5 {[%emt 0:03:41]} h6+ {[%emt 0:02:51]} 37. Kh5 {[%emt 0:00:08]} Qf3+ {[%emt 0:00:39]} 38. Kg6 {[%emt 0:03:05]} Qe4+ {[%emt 0:02:05]} 39. Kxg7 {[%emt 0:00:48]} Qb7+ {[%emt 0:00:10]} 40. Nf7 $18 {[%emt 0:00:42]} 1-0